bitfinex-derivatives/quotes_SOLF0:USTF0_20241127
["timestamp","ask_amount","ask_price","bid_price","bid_amount"]
[1732685396383,6.45267886,229.16,229.07,6.45267886]
[1732685396584,2.91657422,229.15,229.07,6.45267886]
[1732685396778,2.28,229.15,229.07,6.45267886]
[1732685397179,6.45267886,229.14,229.03,2.28]
[1732685397375,6.45267886,229.14,229.05,6.45267886]
[1732685398090,6.45267886,229.14,229.1,2.1831]
[1732685399187,6.45267886,229.14,229.05,6.45267886]
[1732685399389,6.45267886,229.14,229.11,2.1831]
[1732685399788,6.45267886,229.14,229.07,6.45267886]
[1732685400086,6.45267886,229.14,229.12,2.183]
[1732685400389,6.45267886,229.14,229.07,6.45267886]
[1732685400390,2.28,229.18,229.11,6.45267886]
[1732685400586,6.45267886,229.2,229.16,2.1826]
[1732685400785,2.28,229.18,229.11,6.45267886]
[1732685400977,2.28,229.18,229.13,2.1829]
[1732685401185,2.28,229.22,229.13,6.45267886]
[1732685401487,9.36943841,229.21,229.13,6.45267886]
[1732685401690,6.45267886,229.17,229.09,2.28]
[1732685401984,2.28,229.21,229.07,8.73267886]
[1732685401985,6.45267886,229.15,229.07,8.73267886]
[1732685402190,6.45267886,229.15,229.07,6.45267886]
[1732685403089,6.45267886,229.15,229.06,6.45267886]
[1732685403483,6.45267886,229.13,229.1,2.1832]
[1732685403681,6.45267886,229.13,229.05,2.28]
[1732685403993,2.28,229.16,229.05,2.28]
[1732685404187,6.45267886,229.13,229.05,2.28]
[1732685404391,6.45267886,229.15,229.1,2.1832]
[1732685404691,6.45267886,229.15,229.06,6.45267886]
[1732685407394,6.45267886,229.15,229.11,2.1831]
[1732685407891,6.45267886,229.15,229.12,2.1829]
[1732685408087,2.28,229.16,229.12,2.1829]
[1732685409490,6.45267886,229.15,229.07,6.45267886]
[1732685409992,6.45267886,229.15,229.05,8.73267886]
[1732685410188,8.63537886,229.15,229.08,2.1834]
[1732685410494,8.63537886,229.15,229.05,8.73267886]
[1732685410690,6.45267886,229.15,229.1,2.1831]
[1732685411193,2.28,229.16,229.07,6.45267886]
[1732685411586,2.28,229.2,229.11,6.45267886]
[1732685412595,6.45267886,229.21,229.11,6.45267886]
[1732685412799,8.73267886,229.21,229.11,6.45267886]
[1732685413393,2.1822,229.2,229.14,2.1828]
[1732685414593,6.45267886,229.19,229.14,2.1828]
[1732685416487,6.45267886,229.15,229.05,2.28]
[1732685416693,6.45267886,229.17,229.12,2.183]
[1732685416893,2.28,229.21,229.08,6.45267886]
[1732685417089,6.45267886,229.18,229.1,6.45267886]
[1732685417688,2.28,229.21,229.12,6.45267886]
[1732685417902,6.45267886,229.2,229.12,6.45267886]
[1732685418597,8.63487886,229.2,229.14,2.1828]
[1732685420306,6.45267886,229.18,229.14,2.1828]
[1732685420804,6.45267886,229.18,229.15,2.1827]
[1732685421998,6.45267886,229.18,229.14,2.1828]
[1732685422510,6.45267886,229.2,229.14,2.1828]
[1732685422803,2.1823,229.19,229.14,2.1828]
[1732685423202,2.1823,229.19,229.12,6.45267886]
[1732685423400,2.1823,229.19,229.15,2.1827]
[1732685426001,2.1823,229.19,229.14,2.1828]
[1732685426403,2.1828,229.14,229.05,2.28]
[1732685426705,6.45267886,229.11,229.04,0.16123]
[1732685427107,6.45267886,229.11,229.06,2.1835]
[1732685428608,6.45267886,229.11,229.04,2.34483]
[1732685428609,6.45267886,229.09,229.04,2.34483]
[1732685429308,6.45267886,229.05,229.04,0.16123]
[1732685430608,8.63627886,229.05,229.04,0.16123]
[1732685431702,2.28,229.06,229.04,0.16123]
[1732685433709,8.73267886,229.06,229.04,0.16123]
[1732685433907,2.1836,229.05,229.04,0.16123]
[1732685440013,6.45267886,229.07,229.04,0.16123]
[1732685440216,8.73267886,229.07,229.04,0.16123]
[1732685440419,2.28,229.07,228.99,6.45267886]
[1732685441217,2.28,229.07,229.01,6.45267886]
[1732685441518,4.4635,229.07,229.02,2.1838]
[1732685442214,10.91617886,229.07,229.02,2.1838]
[1732685442419,2.1836,229.06,229.01,2.184]
[1732685442622,2.1836,229.06,229.0,2.6162]
[1732685444414,2.1836,229.06,229.02,2.1839]
[1732685445214,8.73267886,229.07,229.02,2.1839]
[1732685445919,2.28,229.07,229.02,6.45267886]
[1732685447323,4.3641,229.22,229.04,6.45267886]
[1732685447524,6.45267886,229.13,229.06,6.45267886]
[1732685447925,8.63567886,229.13,229.09,2.1833]
[1732685449423,2.183,229.13,229.09,2.1833]
[1732685449923,2.1828,229.14,229.09,2.1833]
[1732685450722,6.45267886,229.15,229.09,2.1833]
[1732685450917,6.45267886,229.18,229.1,6.45267886]
[1732685451123,2.28,229.2,229.11,1.2461]
[1732685451325,6.45267886,229.19,229.12,6.45267886]
[1732685451526,2.1824,229.18,229.12,8.63557886]
[1732685451827,2.1824,229.18,229.12,6.45267886]
[1732685452427,2.1824,229.18,229.13,2.1828]
[1732685456526,6.45267886,229.23,229.14,6.45267886]
[1732685456732,6.45267886,229.23,229.16,6.45267886]
[1732685457033,8.63467886,229.23,229.19,2.1823]
[1732685457226,6.45267886,229.23,229.19,2.1823]
[1732685457625,2.1822,229.2,229.15,2.1827]
[1732685457931,6.45267886,229.17,229.11,1.2461]
[1732685458132,6.45267886,229.19,229.11,7.69877886]
[1732685458432,6.45267886,229.19,229.11,1.2461]
[1732685458633,6.45267886,229.17,229.12,2.1829]
[1732685458934,6.45267886,229.18,229.11,1.2461]
[1732685459133,2.28,229.25,229.12,6.45267886]
[1732685459337,2.28,229.25,229.14,2.1827]
[1732685459338,2.1823,229.2,229.14,2.1827]
[1732685459633,6.45267886,229.21,229.14,2.1827]
[1732685460023,2.1823,229.19,229.14,2.1827]
[1732685460431,2.1823,229.19,229.12,6.45267886]
[1732685460625,2.1823,229.19,229.15,2.1827]
[1732685464029,22.06471408,229.28,229.16,6.45267886]
[1732685464336,22.06471408,229.28,229.18,6.45267886]
[1732685464337,6.45267886,229.26,229.18,6.45267886]
[1732685464640,2.1819,229.24,229.16,2.1825]
[1732685464936,2.28,229.27,229.17,1.2814]
[1732685464937,6.45267886,229.22,229.17,1.2814]
[1732685465835,6.45267886,229.22,229.11,1.2461]
[1732685465836,6.45267886,229.2,229.11,1.2461]
[1732685466036,6.45267886,229.18,229.11,1.2461]
[1732685466630,6.45267886,229.18,229.12,6.45267886]
[1732685466935,2.1824,229.19,229.12,6.45267886]
[1732685467133,2.28,229.22,229.17,2.1825]
[1732685467439,2.28,229.22,229.15,6.45267886]
[1732685467735,2.28,229.22,229.18,2.1824]
[1732685467943,2.28,229.26,229.17,6.45267886]
[1732685468137,7.08962168,229.25,229.21,2.1821]
[1732685468433,0.63694282,229.24,229.18,1.3028]
[1732685468740,6.45267886,229.26,229.18,1.3028]
[1732685468940,0.63698995,229.25,229.18,1.3028]
[1732685469635,0.63698995,229.25,229.2,2.1822]
[1732685469839,0.63698995,229.25,229.18,1.3028]
[1732685470039,7.08951718,229.24,229.18,1.3028]
[1732685470238,6.45267886,229.22,229.18,1.3028]
[1732685471239,2.1823,229.2,229.18,1.3028]
[1732685471631,6.45267886,229.2,228.97,2.21261797]
[1732685471835,2.1829,229.14,229.07,6.45267886]
[1732685472239,6.45267886,229.15,229.07,6.45267886]
[1732685472445,8.63537886,229.15,229.1,2.1831]
[1732685472743,8.73267886,229.19,229.11,6.45267886]
[1732685472939,6.45267886,229.19,229.11,6.45267886]
[1732685473144,2.28,229.2,229.11,6.45267886]
[1732685473339,6.45267886,229.18,229.11,6.45267886]
[1732685473937,6.45267886,229.18,229.03,2.28]
[1732685473938,6.45267886,229.17,229.09,6.45267886]
[1732685474134,6.45267886,229.17,229.1,2.4554]
[1732685474334,6.45267886,229.17,229.13,2.1828]
[1732685475239,6.45267886,229.17,229.11,2.183]
[1732685475833,2.28,229.2,229.11,2.183]
[1732685476141,6.45267886,229.18,229.11,2.183]
[1732685476439,2.1826,229.16,229.11,2.183]
[1732685476847,2.1825,229.17,229.12,2.183]
[1732685477046,6.45267886,229.18,229.1,8.90807886]
[1732685477343,8.73267886,229.2,229.12,6.45267886]
[1732685477938,2.1825,229.17,229.13,2.1828]
[1732685478139,2.1825,229.17,229.12,6.45267886]
[1732685479246,2.1825,229.17,229.13,2.1829]
[1732685479548,8.73267886,229.2,229.12,6.45267886]
[1732685479744,8.73267886,229.2,229.12,8.63567886]
[1732685479945,2.28,229.2,229.12,6.45267886]
[1732685480645,22.06471408,229.28,229.11,1.2275]
[1732685480646,2.28,229.24,229.16,6.45267886]
[1732685481239,2.1821,229.22,229.17,2.1824]
[1732685481444,2.28,229.24,229.17,2.1824]
[1732685482242,2.28,229.24,229.16,6.45267886]
[1732685482449,2.1819,229.23,229.18,2.1823]
[1732685483348,2.1819,229.23,229.18,2.1824]
[1732685483645,2.1822,229.2,229.14,2.28]
[1732685483848,6.45267886,229.23,229.14,2.28]
[1732685484044,6.45267886,229.23,229.14,8.73267886]
[1732685484247,2.1824,229.19,229.14,6.45267886]
[1732685484642,6.45267886,229.17,229.11,1.2275]
[1732685485148,2.1826,229.16,229.11,3.4105]
[1732685485549,2.1826,229.16,229.11,1.2275]
[1732685486143,6.45267886,229.18,229.11,1.2275]
[1732685486343,2.1825,229.17,229.12,2.183]
[1732685486948,6.45267886,229.18,229.12,2.183]
[1732685487151,2.1826,229.16,229.12,2.183]
[1732685487840,6.45267886,229.18,229.12,2.183]
[1732685488445,2.1826,229.16,229.12,2.183]
[1732685488745,6.45267886,229.18,229.13,2.1829]
[1732685489048,6.45267886,229.18,229.11,7.68017886]
[1732685489049,2.1826,229.16,229.11,7.68017886]
[1732685489451,2.1825,229.18,229.12,2.183]
[1732685489651,2.1825,229.18,229.11,7.68017886]
[1732685489851,2.28,229.19,229.11,7.68017886]
[1732685490151,2.1826,229.16,229.11,7.68017886]
[1732685490848,2.1825,229.18,229.11,7.68017886]
[1732685491149,2.28,229.23,229.15,6.45267886]
[1732685491345,8.73267886,229.24,229.15,6.45267886]
[1732685491551,2.1819,229.24,229.19,2.1822]
[1732685492347,2.1817,229.26,229.19,6.45267886]
[1732685492550,22.06471408,229.28,229.21,6.45267886]
[1732685492750,0.63771964,229.27,229.21,6.45267886]
[1732685492945,0.63771964,229.27,229.2,2.5415]
[1732685492946,6.45267886,229.27,229.2,2.5415]
[1732685493150,6.45267886,229.25,229.2,2.5415]
[1732685494259,2.1819,229.24,229.2,2.5415]
[1732685496153,2.1817,229.26,229.21,2.1821]
[1732685496351,6.45267886,229.3,229.21,6.45267886]
[1732685497355,6.45267886,229.28,229.23,2.1819]
[1732685498457,2.1816,229.27,229.23,2.1819]
[1732685502666,6.45267886,229.29,229.21,7.70907886]
[1732685502957,2.1815,229.28,229.21,7.70907886]
[1732685503162,2.28,229.33,229.22,2.28]
[1732685503458,2.1815,229.29,229.24,2.1818]
[1732685506363,2.1817,229.26,229.22,4.4619]
[1732685508265,2.1818,229.25,229.22,2.28]
[1732685508763,2.1818,229.25,229.22,4.462]
[1732685509167,6.45267886,229.28,229.22,4.462]
[1732685509364,2.1816,229.27,229.23,2.1819]
[1732685510962,2.1814,229.29,229.22,8.73267886]
[1732685511164,6.45267886,229.3,229.22,2.28]
[1732685511365,6.45267886,229.3,229.22,8.73267886]
[1732685511671,2.1816,229.27,229.23,2.1818]
[1732685512273,2.1815,229.28,229.24,2.1818]
[1732685514070,2.15282621,229.4,229.26,6.45267886]
[1732685514274,13.1,229.51,229.26,6.45267886]
[1732685514275,6.45267886,229.36,229.26,6.45267886]
[1732685514473,6.45267886,229.34,229.26,6.45267886]
[1732685514983,2.1811,229.32,229.28,2.1814]
[1732685515173,2.28,229.37,229.26,6.45267886]
[1732685515481,6.45267886,229.34,229.26,6.45267886]
[1732685515875,2.1811,229.33,229.26,6.45267886]
[1732685516272,2.1807,229.36,229.32,2.1811]
[1732685516475,2.1807,229.36,229.3,8.73267886]
[1732685516676,6.45267886,229.39,229.32,6.45267886]
[1732685516876,2.1807,229.36,229.32,8.63367886]
[1732685517578,2.1806,229.37,229.33,2.181]
[1732685517777,4.3577,229.56,229.34,6.45267886]
[1732685517973,20.76315422,229.54,229.34,6.45267886]
[1732685518172,2.1804,229.4,229.35,2.1808]
[1732685518573,2.28,229.47,229.38,6.45267886]
[1732685518777,2.18,229.43,229.38,6.45267886]
[1732685520080,6.45267886,229.45,229.38,6.45267886]
[1732685520279,6.45267886,229.45,229.37,2.28]
[1732685521083,2.1803,229.4,229.37,2.28]
[1732685521284,6.45267886,229.45,229.36,6.45267886]
[1732685521479,2.18,229.44,229.38,8.63317886]
[1732685521980,2.1799,229.45,229.38,8.73267886]
[1732685522180,6.45267886,229.47,229.38,8.73267886]
[1732685522375,6.45267886,229.45,229.38,6.45267886]
[1732685522879,2.1802,229.42,229.38,6.45267886]
[1732685523486,2.18,229.43,229.38,6.45267886]
[1732685523684,6.45267886,229.47,229.38,6.45267886]
[1732685524287,2.18,229.43,229.38,8.63317886]
[1732685525286,2.28,229.5,229.37,4.9131]
[1732685525287,6.45267886,229.45,229.37,4.9131]
[1732685525786,2.1802,229.42,229.37,4.9131]
[1732685525982,2.1802,229.42,229.37,7.0937]
[1732685526385,2.1802,229.42,229.38,6.45267886]
[1732685527888,6.45267886,229.45,229.38,6.45267886]
[1732685528091,2.28,229.49,229.38,6.45267886]
[1732685528287,6.45267886,229.47,229.4,6.45267886]
[1732685528993,2.1792,229.52,229.4,6.45267886]
[1732685529191,6.45267886,229.47,229.4,6.45267886]
[1732685529491,6.45267886,229.47,229.38,6.45267886]
[1732685529691,2.18,229.43,229.38,6.45267886]
[1732685530389,6.45267886,229.47,229.38,6.45267886]
[1732685530692,6.45267886,229.47,229.4,6.45267886]
[1732685530890,2.1798,229.45,229.4,6.45267886]
[1732685531094,6.45267886,229.47,229.38,6.45267886]
[1732685531490,2.1798,229.45,229.4,2.1803]
[1732685532186,22.03783294,229.55,229.42,6.45267886]
[1732685532387,22.03783294,229.55,229.42,10.89277886]
[1732685532388,2.1798,229.46,229.42,10.89277886]
[1732685532584,2.1798,229.46,229.42,8.71267886]
[1732685532783,6.45267886,229.47,229.41,2.26]
[1732685533386,6.45267886,229.5,229.42,6.45267886]
[1732685533990,2.1797,229.47,229.42,8.63277886]
[1732685534589,2.1797,229.47,229.42,6.45267886]
[1732685534893,2.1797,229.47,229.43,2.18]
[1732685535390,6.45267886,229.5,229.44,8.63257886]
[1732685535589,6.45267886,229.5,229.44,6.45267886]
[1732685535992,6.45267886,229.52,229.44,6.45267886]
[1732685536491,4.3562,229.64,229.51,6.45267886]
[1732685536691,9.97613725,229.63,229.56,6.45267886]
[1732685536891,6.45267886,229.65,229.56,6.45267886]
[1732685537488,2.1784,229.6,229.56,6.45267886]
[1732685537694,6.45267886,229.65,229.56,6.45267886]
[1732685538090,6.45267886,229.63,229.56,6.45267886]
[1732685538393,2.1783,229.61,229.56,6.45267886]
[1732685538598,6.45267886,229.63,229.56,6.45267886]
[1732685539191,2.1783,229.61,229.56,6.45267886]
[1732685539487,6.45267886,229.65,229.56,6.45267886]
[1732685540291,2.1784,229.6,229.56,6.45267886]
[1732685540495,6.45267886,229.65,229.56,6.45267886]
[1732685541198,6.45267886,229.63,229.52,2.6129]
[1732685541398,6.45267886,229.59,229.52,2.6129]
[1732685542291,2.1789,229.56,229.52,2.6129]
[1732685542487,2.1789,229.56,229.53,6.45267886]
[1732685543990,6.45267886,229.59,229.31,1.09043495]
[1732685544195,2.26,229.63,229.25,33.52256461]
[1732685544196,6.45267886,229.55,229.47,6.45267886]
[1732685544392,2.1791,229.53,229.49,6.45267886]
[1732685544594,2.1791,229.53,229.51,6.45267886]
[1732685544790,2.19689203,229.7,229.51,6.45267886]
[1732685544991,4.3546,229.72,229.53,6.45267886]
[1732685544992,6.45267886,229.6,229.53,6.45267886]
[1732685545594,2.1788,229.57,229.53,6.45267886]
[1732685548199,6.45267886,229.62,229.53,6.45267886]
[1732685548795,6.45267886,229.6,229.53,6.45267886]
[1732685549100,2.1789,229.56,229.51,2.26]
[1732685549302,2.1789,229.56,229.54,6.45267886]
[1732685550497,6.45267886,229.62,229.54,6.45267886]
[1732685551401,2.1788,229.57,229.54,6.45267886]
[1732685552308,2.1784,229.6,229.56,6.45267886]
[1732685552498,0.23956,229.69,229.58,6.45267886]
[1732685552703,6.69223886,229.69,229.61,6.45267886]
[1732685553498,6.45267886,229.67,229.59,6.45267886]
[1732685553705,6.45267886,229.67,229.56,2.26]
[1732685553909,6.45267886,229.67,229.59,6.45267886]
[1732685555006,2.1784,229.61,229.59,6.45267886]
[1732685556310,2.1784,229.6,229.59,6.45267886]
[1732685556703,6.45267886,229.63,229.54,6.45267886]
[1732685556904,2.1788,229.57,229.54,6.45267886]
[1732685558707,2.1788,229.56,229.54,6.45267886]
[1732685558902,8.71267886,229.61,229.53,2.5443]
[1732685559209,2.179,229.55,229.54,6.45267886]
[1732685560906,8.71267886,229.61,229.54,6.45267886]
[1732685562205,2.1788,229.56,229.54,6.45267886]
[1732685563104,2.26,229.61,229.54,6.45267886]
[1732685563410,2.26,229.65,229.6,6.45267886]
[1732685564014,2.26,229.66,229.6,6.45267886]
[1732685565212,2.1781,229.64,229.62,6.45267886]
[1732685565817,2.26,229.68,229.62,6.45267886]
[1732685567311,0.23956,229.69,229.66,6.45267886]
[1732685567513,2.26,229.74,229.68,6.45267886]
[1732685568311,8.71267886,229.74,229.66,6.45267886]
[1732685568619,2.26,229.74,229.66,6.45267886]
[1732685568916,6.45267886,229.73,229.66,6.45267886]
[1732685569312,2.1777,229.67,229.66,6.45267886]
[1732685569817,6.45267886,229.73,229.64,6.45267886]
[1732685570218,6.45267886,229.73,229.6,3.5195]
[1732685570417,6.45267886,229.73,229.64,6.45267886]
[1732685570918,4.43538926,229.74,229.64,6.45267886]
[1732685570919,6.45267886,229.71,229.64,6.45267886]
[1732685571614,2.1776,229.69,229.64,6.45267886]
[1732685571815,4.43538926,229.74,229.66,6.45267886]
[1732685572011,10.88806812,229.74,229.66,6.45267886]
[1732685572216,6.45267886,229.72,229.64,6.45267886]
[1732685572718,2.1779,229.66,229.64,6.45267886]
[1732685572912,4.43538926,229.74,229.6,1.3411]
[1732685573116,6.45267886,229.71,229.6,1.3411]
[1732685573419,6.45267886,229.71,229.62,6.45267886]
[1732685573717,6.45267886,229.71,229.64,6.45267886]
[1732685574217,2.1777,229.68,229.64,6.45267886]
[1732685575522,2.1777,229.68,229.66,6.45267886]
[1732685576014,2.26,229.75,229.68,6.45267886]
[1732685578114,2.1773,229.72,229.68,6.45267886]
[1732685580925,2.26,229.74,229.68,6.45267886]
[1732685581126,2.1775,229.7,229.66,6.45267886]
[1732685581719,6.45267886,229.71,229.63,2.6119]
[1732685581921,6.45267886,229.71,229.63,9.06457886]
[1732685582131,2.26,229.74,229.59,2.26]
[1732685582325,6.45267886,229.7,229.62,6.45267886]
[1732685582531,2.26,229.69,229.62,6.45267886]
[1732685583032,2.26,229.69,229.59,2.26]
[1732685583033,2.26,229.73,229.68,6.45267886]
[1732685584426,2.1774,229.71,229.68,6.45267886]
[1732685585030,2.1774,229.71,229.66,2.1778]
[1732685585031,2.1774,229.71,229.7,6.45267886]
[1732685585331,4.4372,229.73,229.7,6.45267886]
[1732685585532,2.26,229.73,229.7,6.45267886]
[1732685586222,4.4372,229.73,229.7,6.45267886]
[1732685587630,2.1773,229.72,229.7,6.45267886]
[1732685587827,2.26,229.73,229.7,6.45267886]
[1732685589128,2.26,229.73,229.69,6.45267886]
[1732685590738,2.1775,229.7,229.69,6.45267886]
[1732685590930,2.1775,229.7,229.64,2.1779]
[1732685591131,6.45267886,229.7,229.6,3.8762]
[1732685591332,2.1777,229.68,229.62,2.1782]
[1732685591631,6.45267886,229.7,229.63,6.45267886]
[1732685592028,6.45267886,229.72,229.65,6.45267886]
[1732685592234,2.26,229.73,229.65,6.45267886]
[1732685592529,6.45267886,229.72,229.6,3.8762]
[1732685592736,6.45267886,229.72,229.65,6.45267886]
[1732685593230,2.1776,229.7,229.65,8.63057886]
[1732685593830,2.1776,229.7,229.65,6.45267886]
[1732685594732,8.71267886,229.74,229.64,8.63067886]
[1732685595230,8.71267886,229.74,229.64,6.45267886]
[1732685595435,6.45267886,229.72,229.64,6.45267886]
[1732685596235,2.1777,229.68,229.64,6.45267886]
[1732685596634,6.45267886,229.7,229.61,2.1782]
[1732685596836,6.45267886,229.7,229.62,6.45267886]
[1732685596837,2.1779,229.66,229.62,6.45267886]
[1732685599636,2.1779,229.66,229.61,2.1782]
[1732685599938,2.1779,229.66,229.63,6.45267886]
[1732685602039,6.45267886,229.72,229.6,3.8762]
[1732685602239,2.178,229.65,229.64,6.45267886]
[1732685603639,2.1782,229.62,229.6,3.8762]
[1732685604140,2.1782,229.62,229.61,6.45267886]
[1732685605747,2.1781,229.63,229.61,6.45267886]
[1732685605942,2.26,229.69,229.61,6.45267886]
[1732685606138,2.26,229.69,229.64,6.45267886]
[1732685606339,2.178,229.65,229.64,6.45267886]
[1732685607142,2.1775,229.7,229.64,6.45267886]
[1732685607340,2.26,229.75,229.68,6.45267886]
[1732685607539,8.55423289,229.74,229.71,6.45267886]
[1732685607743,2.1773,229.73,229.71,6.45267886]
[1732685608140,2.26,229.77,229.71,6.45267886]
[1732685608342,2.1773,229.72,229.71,6.45267886]
[1732685609143,2.1773,229.72,229.69,6.45267886]
[1732685612539,2.1773,229.72,229.67,2.1777]
[1732685612844,2.1773,229.72,229.7,6.45267886]
[1732685613347,2.1772,229.73,229.7,6.45267886]
[1732685613941,0.30622,229.74,229.7,6.45267886]
[1732685614144,2.48332,229.74,229.7,6.45267886]
[1732685614544,0.30622,229.74,229.7,6.45267886]
[1732685614746,2.1772,229.73,229.7,6.45267886]
[1732685616549,0.30622,229.74,229.7,6.45267886]
[1732685616749,0.30622,229.74,229.68,9.03517886]
[1732685617149,18.68990723,229.74,229.68,9.03517886]
[1732685617454,2.1773,229.72,229.68,9.03517886]
[1732685617649,2.1773,229.72,229.7,6.45267886]
[1732685617859,0.30622,229.74,229.7,6.45267886]
[1732685618055,2.1772,229.73,229.7,6.45267886]
[1732685620356,2.1773,229.72,229.7,6.45267886]
[1732685621555,2.26,229.77,229.7,6.45267886]
[1732685621755,2.1774,229.71,229.68,9.03517886]
[1732685621947,2.1774,229.71,229.68,2.5825]
[1732685622253,2.1774,229.71,229.68,9.03517886]
[1732685622651,2.1774,229.71,229.68,2.5825]
[1732685622860,2.1774,229.71,229.69,6.45267886]
[1732685623252,2.1774,229.71,229.68,2.5825]
[1732685623451,2.1774,229.71,229.69,6.45267886]
[1732685624058,2.1775,229.7,229.68,2.5825]
[1732685624962,2.1776,229.69,229.68,2.5825]
[1732685625657,6.45267886,229.72,229.6,1.3091]
[1732685625961,6.45267886,229.72,229.63,6.45267886]
[1732685625962,8.56304957,229.71,229.63,6.45267886]
[1732685626153,6.45267886,229.7,229.61,2.6403]
[1732685626354,8.56236911,229.69,229.61,9.09297886]
[1732685626559,2.1778,229.67,229.61,9.09297886]
[1732685626759,6.45267886,229.7,229.61,9.09297886]
[1732685626959,8.56218851,229.69,229.61,9.09297886]
[1732685627160,2.1778,229.67,229.61,9.09297886]
[1732685627360,6.45267886,229.7,229.61,9.09297886]
[1732685627660,2.178,229.65,229.61,9.09297886]
[1732685627958,6.45267886,229.68,229.61,9.09297886]
[1732685628354,2.26,229.67,229.61,9.09297886]
[1732685628758,2.1782,229.62,229.61,9.09297886]
[1732685630062,2.1781,229.64,229.61,9.09297886]
[1732685630260,2.26,229.67,229.63,6.45267886]
[1732685630456,2.26,229.67,229.65,6.45267886]
[1732685631058,2.26,229.67,229.61,4.8186]
[1732685631258,2.1778,229.66,229.64,6.45267886]
[1732685631465,6.45267886,229.72,229.64,6.45267886]
[1732685631663,18.39068736,229.71,229.64,6.45267886]
[1732685631964,8.56109284,229.7,229.64,6.45267886]
[1732685632164,8.71267886,229.72,229.64,6.45267886]
[1732685632365,8.56173594,229.71,229.64,6.45267886]
[1732685633259,2.1777,229.68,229.64,6.45267886]
[1732685633456,2.1777,229.68,229.66,6.45267886]
[1732685633863,2.26,229.74,229.66,8.63047886]
[1732685634062,2.26,229.74,229.61,4.9003]
[1732685634063,8.56110394,229.73,229.7,6.45267886]
[1732685634367,22.01912116,229.75,229.7,6.45267886]
[1732685634565,8.56049122,229.74,229.7,6.45267886]
[1732685634862,2.1773,229.73,229.7,6.45267886]
[1732685635166,22.01912116,229.75,229.7,6.45267886]
[1732685635467,22.01912116,229.75,229.67,2.1777]
[1732685635468,8.56043611,229.74,229.69,6.45267886]
[1732685636366,2.1773,229.72,229.69,6.45267886]
[1732685639067,2.1774,229.71,229.69,6.45267886]
[1732685639264,22.01912116,229.75,229.69,6.45267886]
[1732685639465,2.1772,229.73,229.69,6.45267886]
[1732685639766,22.01912116,229.75,229.69,6.45267886]
[1732685639966,8.55947877,229.74,229.69,6.45267886]
[1732685640260,22.01912116,229.75,229.69,6.45267886]
[1732685641364,22.01912116,229.75,229.66,2.1778]
[1732685641365,8.5590407,229.74,229.62,1.2166]
[1732685641566,2.1778,229.67,229.64,6.45267886]
[1732685643066,8.71267886,229.71,229.62,1.2166]
[1732685643371,6.45267886,229.69,229.61,2.6403]
[1732685643573,6.45267886,229.69,229.62,6.45267886]
[1732685643574,2.1781,229.64,229.62,6.45267886]
[1732685644272,2.1781,229.64,229.53,2.179]
[1732685644474,2.1781,229.64,229.61,6.45267886]
[1732685645380,2.1782,229.62,229.61,6.45267886]
[1732685645876,2.1781,229.63,229.61,6.45267886]
[1732685647568,2.1781,229.64,229.61,6.45267886]
[1732685648271,2.13260018,229.73,229.63,6.45267886]
[1732685648477,2.1778,229.67,229.57,2.24]
[1732685648779,2.24,229.72,229.66,6.45267886]
[1732685648983,6.45267886,229.71,229.58,2.5144]
[1732685649182,6.45267886,229.71,229.63,6.45267886]
[1732685649577,2.1779,229.66,229.63,6.45267886]
[1732685651176,2.178,229.65,229.63,6.45267886]
[1732685651975,8.55660941,229.7,229.63,6.45267886]
[1732685651976,2.178,229.64,229.63,6.45267886]
[1732685653181,2.178,229.65,229.63,6.45267886]
[1732685656074,2.24,229.68,229.63,6.45267886]
[1732685656279,2.1778,229.66,229.65,6.45267886]
[1732685656679,2.1778,229.66,229.63,6.45267886]
[1732685659980,2.24,229.68,229.58,2.5144]
[1732685660187,6.45267886,229.67,229.6,6.45267886]
[1732685660890,2.1781,229.63,229.6,6.45267886]
[1732685661684,22.01750882,229.76,229.62,6.45267886]
[1732685661885,6.45267886,229.72,229.64,6.45267886]
[1732685662086,8.56999747,229.71,229.64,6.45267886]
[1732685662394,2.1776,229.69,229.64,6.45267886]
[1732685662593,4.4176,229.69,229.64,6.45267886]
[1732685663389,2.24,229.69,229.58,2.5144]